[Event "44th Chess Olympiad Women 2022"]
[Site "Chennai"]
[Date "2022.08.01"]
[Round "4.47"]
[White "Ahmad Murad, Fatema Alzahraa."]
[Black "Lyons, Kieran"]
[Result "0-1"]
[WhiteElo "1791"]
[BlackElo "1767"]
[Annotator "NA RC"]
[PlyCount "105"]
[EventDate "2022.??.??"]
[TimeControl "60"]

1. d4 {[%emt 0:00:04]} f5 {[%emt 0:00:04]} 2. c4 {[%emt 0:00:19]} e6 {[%emt 0:
00:00]} 3. Nf3 {[%emt 0:01:08]} d6 {[%emt 0:00:12]} 4. Nc3 {[%emt 0:01:21]} Nf6
{[%emt 0:00:10]} 5. e3 {[%emt 0:02:42]} Be7 {[%emt 0:00:24]} 6. Bd3 {[%emt 0:
00:00]} O-O {[%emt 0:00:09]} 7. Qc2 {[%emt 0:06:07]} Nc6 {[%emt 0:01:48]} 8. a3
{[%emt 0:01:16]} Qe8 {[%emt 0:04:27]} 9. d5 {[%emt 0:08:05]} Ne5 {[%emt 0:00:
00]} 10. dxe6 {[%emt 0:07:03]} Nxd3+ {[%emt 0:00:53]} 11. Qxd3 {[%emt 0:00:06]}
Bxe6 {[%emt 0:00:31]} 12. Nd4 {[%emt 0:01:14]} Qd7 {[%emt 0:03:20]} 13. Ncb5 {
[%emt 0:03:09]} Bd8 {[%emt 0:07:16]} 14. Nxe6 {[%emt 0:01:39]} Qxe6 {[%emt 0:
00:00]} 15. f3 {[%emt 0:05:43]} Nd7 {[%emt 0:07:49]} 16. b3 {[%emt 0:11:59]}
Nc5 {[%emt 0:04:19]} 17. Qc2 {[%emt 0:00:59]} Rf7 {[%emt 0:15:19]} 18. O-O {
[%emt 0:01:52]} Bg5 {[%emt 0:05:59]} 19. Re1 {[%emt 0:04:51]} Qg6 {[%emt 0:00:
00]} 20. b4 {[%emt 0:04:19]} Bf6 {[%emt 0:03:34]} 21. Rb1 {[%emt 0:06:37]} Ne6
{[%emt 0:03:18]} 22. Bb2 {[%emt 0:02:38]} Ng5 {[%emt 0:02:40]} 23. Kh1 {
[%emt 0:01:41]} a6 {[%emt 0:07:23]} 24. Nd4 {[%emt 0:01:54]} Be5 {[%emt 0:00:
00]} 25. Nb3 {[%emt 0:02:04]} Qh6 {[%emt 0:04:27]} 26. f4 {[%emt 0:01:12]} Bxf4
{[%emt 0:03:33]} 27. exf4 {[%emt 0:00:09]} Ne4 {[%emt 0:00:04]} 28. Bc1 {
[%emt 0:03:32]} Qh4 {[%emt 0:01:15]} 29. Be3 {[%emt 0:03:22]} Re8 {[%emt 0:00:
00]} 30. Nd2 {[%emt 0:01:23]} Rfe7 {[%emt 0:00:43]} 31. Nxe4 {[%emt 0:01:39]}
Rxe4 {[%emt 0:00:10]} 32. Qf2 {[%emt 0:00:46]} Qf6 {[%emt 0:03:32]} 33. Bd4 {
[%emt 0:02:16]} Qxd4 {[%emt 0:00:49]} 34. Qxd4 {[%emt 0:00:53]} Rxe1+ {[%emt 0:
00:00]} 35. Rxe1 {[%emt 0:00:24]} Rxe1+ {[%emt 0:00:04]} 36. Qg1 {[%emt 0:00:
00]} Rxg1+ {[%emt 0:00:04]} 37. Kxg1 {[%emt 0:00:05]} Kf7 {[%emt 0:00:03]} 38.
Kf2 {[%emt 0:00:06]} Kf6 {[%emt 0:00:33]} 39. Ke3 {[%emt 0:00:14]} c5 {[%emt 0:
00:00]} 40. b5 {[%emt 0:00:33]} axb5 {[%emt 0:00:29]} 41. cxb5 {[%emt 0:30:10]}
b6 {[%emt 0:30:57]} 42. Kd3 {[%emt 0:00:16]} d5 {[%emt 0:00:06]} 43. a4 {
[%emt 0:00:34]} Ke6 {[%emt 0:00:50]} 44. Kc3 {[%emt 0:00:28]} h6 {[%emt 0:00:
00]} 45. h4 {[%emt 0:00:46]} h5 {[%emt 0:00:59]} 46. Kb3 {[%emt 0:01:03]} d4 {
[%emt 0:01:12]} 47. Ka3 {[%emt 0:02:54]} d3 {[%emt 0:00:00]} 48. Kb3 {[%emt 0:
00:00]} Kd5 {[%emt 0:00:00]} 49. Kc3 {[%emt 0:00:00]} c4 {[%emt 0:00:00]} 50.
Kd2 {[%emt 0:00:00]} Kc5 {[%emt 0:00:00]} 51. Kc3 {[%emt 0:00:00]} Kd6 {
[%emt 0:00:00]} 52. Kd2 {[%emt 0:00:00]} Kd5 {[%emt 0:00:00]} 53. Ke3 {[%emt 0:
00:00]} 0-1

[Event "44th Chess Olympiad Women 2022"]
[Site "Chennai"]
[Date "2022.08.01"]
[Round "4.47"]
[White "Khalil, Manar"]
[Black "Terubea, Cydel"]
[Result "1-0"]
[WhiteElo "1831"]
[BlackElo "1450"]
[Annotator "NA RC"]
[PlyCount "87"]
[EventDate "2022.??.??"]
[TimeControl "60"]

1. e4 {[%emt 0:00:15]} e5 {[%emt 0:00:12]} 2. Nf3 {[%emt 0:00:00]} Nf6 {
[%emt 0:00:12]} 3. d4 {[%emt 0:00:43]} exd4 {[%emt 0:02:46]} 4. e5 {[%emt 0:00:
00]} Qe7 {[%emt 0:10:30]} 5. Be2 {[%emt 0:01:57]} Ng4 {[%emt 0:04:13]} 6. Qxd4
{[%emt 0:12:41]} Qb4+ {[%emt 0:02:04]} 7. Qxb4 {[%emt 0:02:54]} Bxb4+ {[%emt 0:
00:00]} 8. c3 {[%emt 0:00:40]} Bc5 {[%emt 0:02:40]} 9. O-O {[%emt 0:00:28]} d6
{[%emt 0:01:50]} 10. b4 {[%emt 0:00:59]} Bb6 {[%emt 0:02:22]} 11. exd6 {
[%emt 0:00:55]} cxd6 {[%emt 0:00:31]} 12. Bf4 {[%emt 0:01:02]} O-O {[%emt 0:00:
00]} 13. Bxd6 {[%emt 0:01:16]} Re8 {[%emt 0:00:33]} 14. Bb5 {[%emt 0:06:13]}
Bd7 {[%emt 0:00:38]} 15. Bxd7 {[%emt 0:01:34]} Nxd7 {[%emt 0:00:06]} 16. Nbd2 {
[%emt 0:05:20]} Nde5 {[%emt 0:09:51]} 17. c4 {[%emt 0:16:11]} Rac8 {[%emt 0:00:
00]} 18. c5 {[%emt 0:01:25]} Bc7 {[%emt 0:00:05]} 19. Bxc7 {[%emt 0:03:27]}
Rxc7 {[%emt 0:00:12]} 20. h3 {[%emt 0:00:30]} Nf6 {[%emt 0:01:33]} 21. Nxe5 {
[%emt 0:00:43]} Rxe5 {[%emt 0:00:20]} 22. Rfe1 {[%emt 0:00:25]} Rce7 {[%emt 0:
00:00]} 23. Nf3 {[%emt 0:00:34]} Rxe1+ {[%emt 0:01:30]} 24. Rxe1 {[%emt 0:00:
00]} Rxe1+ {[%emt 0:00:10]} 25. Nxe1 {[%emt 0:00:07]} Nd5 {[%emt 0:00:03]} 26.
Nd3 {[%emt 0:00:07]} Kf8 {[%emt 0:01:16]} 27. Kf1 {[%emt 0:01:02]} Ke7 {
[%emt 0:00:07]} 28. Ke1 {[%emt 0:00:37]} f6 {[%emt 0:03:33]} 29. Kd2 {[%emt 0:
00:00]} a6 {[%emt 0:00:52]} 30. a4 {[%emt 0:01:15]} Kd7 {[%emt 0:00:48]} 31.
Kc2 {[%emt 0:01:23]} Kc6 {[%emt 0:00:44]} 32. Kb3 {[%emt 0:00:42]} b6 {[%emt 0:
00:00]} 33. cxb6 {[%emt 0:01:22]} Nxb6 {[%emt 0:00:43]} 34. Nc5 {[%emt 0:02:56]
} g5 {[%emt 0:12:22]} 35. Nxa6 {[%emt 0:03:16]} Nd7 {[%emt 0:00:15]} 36. b5+ {
[%emt 0:00:46]} Kb6 {[%emt 0:01:53]} 37. Kb4 {[%emt 0:00:32]} Ne5 {[%emt 0:00:
00]} 38. Nc5 {[%emt 0:00:36]} f5 {[%emt 0:01:27]} 39. a5+ {[%emt 0:00:25]} Ka7
{[%emt 0:01:38]} 40. b6+ {[%emt 0:00:21]} Kb8 {[%emt 0:00:38]} 41. Kb5 {
[%emt 0:30:20]} h5 {[%emt 0:30:48]} 42. a6 {[%emt 0:00:18]} g4 {[%emt 0:00:50]}
43. a7+ {[%emt 0:00:10]} Ka8 {[%emt 0:01:29]} 44. Ka6 {[%emt 0:00:11]} 1-0

[Event "44th Chess Olympiad Women 2022"]
[Site "Chennai"]
[Date "2022.08.01"]
[Round "4.47"]
[White "Prasad, Tanvi"]
[Black "Bofroud, Naya"]
[Result "1/2-1/2"]
[WhiteElo "1165"]
[BlackElo "1660"]
[Annotator "NA RC"]
[PlyCount "115"]
[EventDate "2022.??.??"]
[TimeControl "60"]

1. d4 {[%emt 0:00:03]} d5 {[%emt 0:00:13]} 2. c4 {[%emt 0:00:06]} e6 {[%emt 0:
00:00]} 3. cxd5 {[%emt 0:00:12]} exd5 {[%emt 0:00:17]} 4. Nc3 {[%emt 0:00:11]}
Nf6 {[%emt 0:00:19]} 5. Bg5 {[%emt 0:00:47]} c6 {[%emt 0:00:18]} 6. Nf3 {
[%emt 0:00:58]} Be7 {[%emt 0:00:20]} 7. h3 {[%emt 0:00:28]} Nbd7 {[%emt 0:00:
00]} 8. e3 {[%emt 0:00:26]} O-O {[%emt 0:00:24]} 9. Bd3 {[%emt 0:00:29]} Re8 {
[%emt 0:01:05]} 10. O-O {[%emt 0:00:19]} Nf8 {[%emt 0:01:25]} 11. Bc2 {[%emt 0:
00:00]} Ne4 {[%emt 0:06:21]} 12. Bf4 {[%emt 0:03:43]} Ng5 {[%emt 0:05:07]} 13.
Nxg5 {[%emt 0:01:20]} Bxg5 {[%emt 0:00:08]} 14. Bh2 {[%emt 0:02:40]} g6 {
[%emt 0:10:16]} 15. Ne2 {[%emt 0:06:29]} Ne6 {[%emt 0:05:44]} 16. Qd3 {[%emt 0:
00:00]} Bh6 {[%emt 0:08:55]} 17. Be5 {[%emt 0:02:54]} Qe7 {[%emt 0:16:25]} 18.
a3 {[%emt 0:02:23]} Ng5 {[%emt 0:04:12]} 19. h4 {[%emt 0:04:01]} Ne4 {[%emt 0:
00:00]} 20. h5 {[%emt 0:04:41]} Bf5 {[%emt 0:01:36]} 21. hxg6 {[%emt 0:01:45]}
hxg6 {[%emt 0:03:20]} 22. Qd1 {[%emt 0:00:58]} Qh4 {[%emt 0:07:22]} 23. Ng3 {
[%emt 0:04:19]} Bg4 {[%emt 0:04:19]} 24. Qe1 {[%emt 0:09:31]} Bg7 {[%emt 0:00:
00]} 25. Nxe4 {[%emt 0:05:12]} Bxe5 {[%emt 0:03:36]} 26. dxe5 {[%emt 0:02:09]}
dxe4 {[%emt 0:00:21]} 27. Bxe4 {[%emt 0:01:30]} Rxe5 {[%emt 0:04:04]} 28. f3 {
[%emt 0:01:54]} Qh6 {[%emt 0:01:45]} 29. Bxc6 {[%emt 0:06:04]} bxc6 {[%emt 0:
00:00]} 30. fxg4 {[%emt 0:00:45]} Qg5 {[%emt 0:02:59]} 31. Rf4 {[%emt 0:01:31]}
Rae8 {[%emt 0:00:49]} 32. Qf2 {[%emt 0:01:35]} Rxe3 {[%emt 0:01:03]} 33. Rf1 {
[%emt 0:01:46]} Re2 {[%emt 0:01:29]} 34. Qxa7 {[%emt 0:01:45]} R2e7 {[%emt 0:
00:00]} 35. Qd4 {[%emt 0:01:45]} Qb5 {[%emt 0:00:53]} 36. Qc4 {[%emt 0:01:44]}
Qb6+ {[%emt 0:00:25]} 37. Kh2 {[%emt 0:02:10]} Qc7 {[%emt 0:00:04]} 38. g3 {
[%emt 0:01:01]} Re2+ {[%emt 0:00:26]} 39. R1f2 {[%emt 0:00:32]} Rxf2+ {[%emt 0:
00:00]} 40. Rxf2 {[%emt 0:00:22]} Re3 {[%emt 0:00:41]} 41. Qf4 {[%emt 0:30:47]}
Qe7 {[%emt 0:30:44]} 42. Qb8+ {[%emt 0:04:14]} Kg7 {[%emt 0:00:28]} 43. Qb6 {
[%emt 0:02:35]} Qe5 {[%emt 0:00:00]} 44. Rg2 {[%emt 0:00:00]} Qe4 {[%emt 0:00:
00]} 45. g5 {[%emt 0:00:00]} Qf3 {[%emt 0:00:00]} 46. Qd4+ {[%emt 0:00:00]} Kh7
{[%emt 0:00:00]} 47. Qf4 {[%emt 0:00:00]} Qxf4 {[%emt 0:00:00]} 48. gxf4 {
[%emt 0:00:00]} Rf3 {[%emt 0:00:00]} 49. a4 {[%emt 0:00:00]} Rxf4 {[%emt 0:00:
00]} 50. b3 {[%emt 0:00:00]} Rb4 {[%emt 0:00:00]} 51. Rb2 {[%emt 0:00:00]} c5 {
[%emt 0:00:00]} 52. a5 {[%emt 0:00:00]} c4 {[%emt 0:00:00]} 53. Kg2 {[%emt 0:
00:00]} cxb3 {[%emt 0:00:00]} 54. Kf3 {[%emt 0:00:00]} Rb5 {[%emt 0:00:00]} 55.
Kf4 {[%emt 0:00:00]} Rxa5 {[%emt 0:00:00]} 56. Rxb3 {[%emt 0:00:00]} Kg7 {
[%emt 0:00:00]} 57. Rb4 {[%emt 0:00:00]} Rf5+ {[%emt 0:00:28]} 58. Kg4 {
[%emt 0:00:00]} 1/2-1/2

[Event "44th Chess Olympiad Women 2022"]
[Site "Chennai"]
[Date "2022.08.01"]
[Round "4.47"]
[White "Sewak, Aarti"]
[Black "Mahmoud, Roula"]
[Result "0-1"]
[WhiteElo "1412"]
[BlackElo "1765"]
[Annotator "NA RC"]
[PlyCount "142"]
[EventDate "2022.??.??"]
[TimeControl "60"]

1. d4 {[%emt 0:00:23]} Nf6 {[%emt 0:00:03]} 2. Nf3 {[%emt 0:00:09]} g6 {
[%emt 0:00:22]} 3. g3 {[%emt 0:00:09]} Bg7 {[%emt 0:00:05]} 4. Bg2 {[%emt 0:00:
00]} O-O {[%emt 0:00:05]} 5. Nc3 {[%emt 0:00:27]} d5 {[%emt 0:01:03]} 6. Ne5 {
[%emt 0:00:45]} c6 {[%emt 0:02:40]} 7. f4 {[%emt 0:03:34]} Nbd7 {[%emt 0:02:25]
} 8. O-O {[%emt 0:01:23]} Ne8 {[%emt 0:04:02]} 9. Qd3 {[%emt 0:02:51]} Ndf6 {
[%emt 0:04:15]} 10. h3 {[%emt 0:01:12]} h5 {[%emt 0:02:52]} 11. Rf2 {[%emt 0:
00:00]} Nd6 {[%emt 0:00:35]} 12. b3 {[%emt 0:07:53]} Bf5 {[%emt 0:03:48]} 13.
Qd1 {[%emt 0:01:28]} Qc8 {[%emt 0:04:35]} 14. Kh2 {[%emt 0:00:36]} b5 {[%emt 0:
00:00]} 15. a3 {[%emt 0:03:04]} Nfe4 {[%emt 0:03:08]} 16. Nxe4 {[%emt 0:01:46]}
dxe4 {[%emt 0:02:47]} 17. g4 {[%emt 0:04:38]} hxg4 {[%emt 0:00:38]} 18. Nxg4 {
[%emt 0:00:54]} Bxg4 {[%emt 0:01:14]} 19. hxg4 {[%emt 0:00:18]} Qxg4 {[%emt 0:
00:00]} 20. Bh3 {[%emt 0:00:27]} Qh5 {[%emt 0:00:48]} 21. Rg2 {[%emt 0:05:12]}
Nf5 {[%emt 0:03:25]} 22. Rg5 {[%emt 0:01:27]} Qh4 {[%emt 0:00:13]} 23. e3 {
[%emt 0:01:15]} Rad8 {[%emt 0:03:03]} 24. c3 {[%emt 0:00:22]} c5 {[%emt 0:00:
00]} 25. Qe2 {[%emt 0:02:28]} cxd4 {[%emt 0:03:59]} 26. cxd4 {[%emt 0:01:50]}
e5 {[%emt 0:20:21]} 27. Rg4 {[%emt 0:02:19]} Qh8 {[%emt 0:00:17]} 28. fxe5 {
[%emt 0:01:05]} Bxe5+ {[%emt 0:00:19]} 29. Kg2 {[%emt 0:06:00]} Bd6 {[%emt 0:
00:00]} 30. Qf2 {[%emt 0:02:31]} Qf6 {[%emt 0:06:13]} 31. Bb2 {[%emt 0:01:15]}
Rfe8 {[%emt 0:01:32]} 32. Rg1 {[%emt 0:03:55]} Kf8 {[%emt 0:03:03]} 33. Rf1 {
[%emt 0:07:28]} Rc8 {[%emt 0:02:26]} 34. d5 {[%emt 0:03:35]} Nxe3+ {[%emt 0:00:
00]} 35. Qxe3 {[%emt 0:02:53]} Qxb2+ {[%emt 0:00:07]} 36. Rf2 {[%emt 0:00:54]}
Rc2 {[%emt 0:00:16]} 37. Qh6+ {[%emt 0:00:33]} Ke7 {[%emt 0:03:14]} 38. Rxe4+ {
[%emt 0:00:36]} Kd8 {[%emt 0:00:19]} 39. Rxe8+ {[%emt 0:07:32]} Kxe8 {[%emt 0:
00:00]} 40. Rxc2 {[%emt 0:06:31]} Qxc2+ {[%emt 0:00:31]} 41. Kf1 {[%emt 0:00:
00]} Qd3+ {[%emt 0:33:35]} 42. Kg1 {[%emt 0:05:44]} Qxb3 {[%emt 0:01:42]} 43.
Qh8+ {[%emt 0:02:05]} Ke7 {[%emt 0:00:30]} 44. Qh4+ {[%emt 0:00:35]} g5 {
[%emt 0:00:00]} 45. Qxg5+ {[%emt 0:00:00]} Ke8 {[%emt 0:00:00]} 46. Qg8+ {
[%emt 0:00:00]} Bf8 {[%emt 0:00:00]} 47. Bg2 {[%emt 0:00:00]} Qxa3 {[%emt 0:00:
00]} 48. Qg4 {[%emt 0:00:00]} Qc1+ {[%emt 0:00:00]} 49. Kf2 {[%emt 0:00:00]}
Bc5+ {[%emt 0:00:00]} 50. Kg3 {[%emt 0:00:00]} Qe3+ {[%emt 0:00:00]} 51. Bf3 {
[%emt 0:00:00]} Qg1+ {[%emt 0:00:00]} 52. Kh3 {[%emt 0:00:00]} Qxg4+ {[%emt 0:
00:00]} 53. Kxg4 {[%emt 0:00:00]} Ke7 {[%emt 0:00:00]} 54. Be4 {[%emt 0:00:00]}
Kd6 {[%emt 0:00:00]} 55. Kf5 {[%emt 0:00:00]} Bd4 {[%emt 0:00:00]} 56. Bd3 {
[%emt 0:00:09]} Kxd5 {[%emt 0:00:00]} 57. Bxb5 {[%emt 0:00:20]} a5 {[%emt 0:00:
00]} 58. Ba4 {[%emt 0:01:40]} f6 {[%emt 0:00:00]} 59. Bb3+ {[%emt 0:00:52]} Kc5
{[%emt 0:00:00]} 60. Ke4 {[%emt 0:00:18]} Kb4 {[%emt 0:00:00]} 61. Bd5 {
[%emt 0:00:36]} Be5 {[%emt 0:00:00]} 62. Kd3 {[%emt 0:00:27]} a4 {[%emt 0:00:
00]} 63. Kc2 {[%emt 0:00:36]} a3 {[%emt 0:00:00]} 64. Kd3 {[%emt 0:00:32]} f5 {
[%emt 0:00:00]} 65. Be6 {[%emt 0:04:07]} f4 {[%emt 0:00:00]} 66. Ke4 {[%emt 0:
00:00]} Bd6 {[%emt 0:00:00]} 67. Kd3 {[%emt 0:00:49]} Be7 {[%emt 0:02:49]} 68.
Bd5 {[%emt 0:01:37]} Bg5 {[%emt 0:00:28]} 69. Ba2 {[%emt 0:00:45]} f3 {[%emt 0:
00:00]} 70. Bd5 {[%emt 0:00:33]} f2 {[%emt 0:00:35]} 71. Ke2 {[%emt 0:01:44]}
Bh4 {[%emt 0:00:51]} 0-1

[Event "44th Chess Olympiad Women 2022"]
[Site "Chennai"]
[Date "2022.08.01"]
[Round "4.48"]
[White "Dubois, Martine"]
[Black "Ben Said, Safa"]
[Result "1-0"]
[WhiteElo "1782"]
[BlackElo "1564"]
[Annotator "NA RC"]
[PlyCount "87"]
[EventDate "2022.??.??"]
[TimeControl "60"]

1. e4 {[%emt 0:00:03]} e6 {[%emt 0:00:07]} 2. Nf3 {[%emt 0:00:14]} d5 {[%emt 0:
00:00]} 3. Nc3 {[%emt 0:00:05]} Nf6 {[%emt 0:01:23]} 4. e5 {[%emt 0:00:12]}
Nfd7 {[%emt 0:00:05]} 5. d4 {[%emt 0:00:08]} c5 {[%emt 0:00:05]} 6. dxc5 {
[%emt 0:00:09]} Bxc5 {[%emt 0:00:13]} 7. Bd3 {[%emt 0:00:12]} Nc6 {[%emt 0:00:
00]} 8. Bf4 {[%emt 0:00:13]} a6 {[%emt 0:01:11]} 9. O-O {[%emt 0:02:35]} Qc7 {
[%emt 0:05:38]} 10. Qd2 {[%emt 0:07:51]} Ndxe5 {[%emt 0:07:50]} 11. Nxe5 {
[%emt 0:00:31]} Nxe5 {[%emt 0:00:05]} 12. Nxd5 {[%emt 0:03:44]} Qd7 {[%emt 0:
00:00]} 13. Be2 {[%emt 0:15:46]} Qxd5 {[%emt 0:08:05]} 14. Qxd5 {[%emt 0:00:13]
} exd5 {[%emt 0:00:10]} 15. Bxe5 {[%emt 0:00:15]} O-O {[%emt 0:00:40]} 16. Rfd1
{[%emt 0:06:36]} Be6 {[%emt 0:04:40]} 17. Bf3 {[%emt 0:08:00]} Rfd8 {[%emt 0:
00:00]} 18. Rd2 {[%emt 0:03:18]} Rd7 {[%emt 0:09:31]} 19. Rad1 {[%emt 0:01:08]}
Rad8 {[%emt 0:01:51]} 20. c3 {[%emt 0:06:41]} a5 {[%emt 0:10:19]} 21. Bd4 {
[%emt 0:04:04]} b6 {[%emt 0:03:12]} 22. a3 {[%emt 0:03:21]} Kf8 {[%emt 0:03:14]
} 23. Be2 {[%emt 0:02:09]} Bxd4 {[%emt 0:07:21]} 24. Rxd4 {[%emt 0:00:09]} Ke7
{[%emt 0:02:58]} 25. f4 {[%emt 0:04:07]} Bf5 {[%emt 0:03:11]} 26. Bf3 {[%emt 0:
00:00]} Bc2 {[%emt 0:02:52]} 27. Re1+ {[%emt 0:02:56]} Kf8 {[%emt 0:00:49]} 28.
Re2 {[%emt 0:04:29]} Bb3 {[%emt 0:00:55]} 29. Kf2 {[%emt 0:00:23]} Bc4 {
[%emt 0:03:21]} 30. Red2 {[%emt 0:02:05]} b5 {[%emt 0:03:47]} 31. Bd1 {[%emt 0:
00:00]} b4 {[%emt 0:01:31]} 32. axb4 {[%emt 0:01:55]} axb4 {[%emt 0:00:24]} 33.
cxb4 {[%emt 0:00:13]} Rb8 {[%emt 0:01:40]} 34. Rxc4 {[%emt 0:02:10]} dxc4 {
[%emt 0:01:00]} 35. Rxd7 {[%emt 0:00:10]} Rxb4 {[%emt 0:00:04]} 36. Rd2 {
[%emt 0:01:01]} c3 {[%emt 0:01:12]} 37. bxc3 {[%emt 0:00:28]} Rxf4+ {[%emt 0:
00:00]} 38. Ke3 {[%emt 0:00:43]} Rf6 {[%emt 0:01:31]} 39. Bb3 {[%emt 0:03:44]}
Rb6 {[%emt 0:00:54]} 40. Bd5 {[%emt 0:00:31]} Ke7 {[%emt 0:01:07]} 41. Kd4 {
[%emt 0:31:19]} h5 {[%emt 0:31:39]} 42. Re2+ {[%emt 0:00:50]} Kf8 {[%emt 0:00:
00]} 43. c4 {[%emt 0:01:11]} g5 {[%emt 0:00:50]} 44. c5 {[%emt 0:01:32]} 1-0

[Event "44th Chess Olympiad Women 2022"]
[Site "Chennai"]
[Date "2022.08.01"]
[Round "4.48"]
[White "Hwass Zeineb"]
[Black "Berezovsky, Fiorina"]
[Result "1-0"]
[WhiteElo "1386"]
[BlackElo "1544"]
[Annotator "NA RC"]
[PlyCount "139"]
[EventDate "2022.??.??"]
[TimeControl "60"]

1. d4 {[%emt 0:00:02]} d5 {[%emt 0:00:19]} 2. Bf4 {[%emt 0:00:13]} c5 {[%emt 0:
00:00]} 3. e3 {[%emt 0:00:13]} Nc6 {[%emt 0:01:16]} 4. c3 {[%emt 0:00:47]} Nf6
{[%emt 0:01:35]} 5. h3 {[%emt 0:00:46]} Qb6 {[%emt 0:02:32]} 6. Qb3 {[%emt 0:
00:00]} c4 {[%emt 0:01:57]} 7. Qxb6 {[%emt 0:00:21]} axb6 {[%emt 0:00:03]} 8.
Nd2 {[%emt 0:01:25]} e6 {[%emt 0:02:23]} 9. Ngf3 {[%emt 0:01:25]} b5 {[%emt 0:
00:00]} 10. Be2 {[%emt 0:05:36]} b4 {[%emt 0:01:50]} 11. O-O {[%emt 0:00:20]}
bxc3 {[%emt 0:02:51]} 12. bxc3 {[%emt 0:00:07]} Ra3 {[%emt 0:06:26]} 13. Rfc1 {
[%emt 0:05:08]} Na7 {[%emt 0:07:10]} 14. Nb1 {[%emt 0:02:36]} Ra6 {[%emt 0:00:
00]} 15. a4 {[%emt 0:02:48]} Bd7 {[%emt 0:04:58]} 16. Bd1 {[%emt 0:03:23]} b5 {
[%emt 0:04:19]} 17. Ne5 {[%emt 0:05:27]} b4 {[%emt 0:04:12]} 18. Nxd7 {[%emt 0:
00:00]} Kxd7 {[%emt 0:01:18]} 19. cxb4 {[%emt 0:01:52]} Bxb4 {[%emt 0:00:41]}
20. Nc3 {[%emt 0:02:08]} Bxc3 {[%emt 0:10:01]} 21. Rxc3 {[%emt 0:00:03]} Ne4 {
[%emt 0:01:24]} 22. Rcc1 {[%emt 0:01:47]} Kc6 {[%emt 0:02:42]} 23. f3 {[%emt 0:
00:00]} Nd6 {[%emt 0:03:14]} 24. Rcb1 {[%emt 0:03:26]} h6 {[%emt 0:05:27]} 25.
Rb4 {[%emt 0:05:05]} Rc8 {[%emt 0:04:25]} 26. Rab1 {[%emt 0:05:31]} Kd7 {
[%emt 0:03:17]} 27. Bc2 {[%emt 0:09:37]} Nc6 {[%emt 0:02:10]} 28. R4b2 {
[%emt 0:03:44]} f6 {[%emt 0:03:26]} 29. Rd1 {[%emt 0:04:18]} e5 {[%emt 0:02:36]
} 30. dxe5 {[%emt 0:00:38]} fxe5 {[%emt 0:00:40]} 31. Bg3 {[%emt 0:00:43]} d4 {
[%emt 0:01:08]} 32. exd4 {[%emt 0:01:49]} exd4 {[%emt 0:00:39]} 33. Bg6 {
[%emt 0:15:46]} Rxa4 {[%emt 0:02:26]} 34. Rb6 {[%emt 0:03:24]} c3 {[%emt 0:00:
00]} 35. Bd3 {[%emt 0:03:59]} Rb8 {[%emt 0:03:01]} 36. Rxb8 {[%emt 0:01:52]}
Nxb8 {[%emt 0:00:02]} 37. Be5 {[%emt 0:00:55]} Nc6 {[%emt 0:02:06]} 38. Bxg7 {
[%emt 0:00:58]} Ra2 {[%emt 0:04:07]} 39. Bxh6 {[%emt 0:02:44]} c2 {[%emt 0:00:
00]} 40. Rc1 {[%emt 0:00:19]} Nb4 {[%emt 0:00:22]} 41. Bg6 {[%emt 0:30:28]} d3
{[%emt 0:31:01]} 42. Bd2 {[%emt 0:00:49]} Nc6 {[%emt 0:00:00]} 43. Bxd3 {
[%emt 0:00:00]} Nd4 {[%emt 0:00:00]} 44. Bf4 {[%emt 0:00:00]} Ra3 {[%emt 0:00:
00]} 45. Bf1 {[%emt 0:00:00]} N6f5 {[%emt 0:00:26]} 46. Kf2 {[%emt 0:00:00]}
Rb3 {[%emt 0:02:10]} 47. Bd2 {[%emt 0:00:00]} Kd6 {[%emt 0:01:29]} 48. Bc4 {
[%emt 0:00:00]} Rb1 {[%emt 0:00:57]} 49. Bd3 {[%emt 0:00:00]} Rb2 {[%emt 0:00:
00]} 50. g4 {[%emt 0:00:00]} Nh4 {[%emt 0:00:27]} 51. Be4 {[%emt 0:01:47]} Kc5
{[%emt 0:01:24]} 52. Be3 {[%emt 0:00:42]} Kc4 {[%emt 0:00:32]} 53. Bxd4 {
[%emt 0:00:06]} Kxd4 {[%emt 0:00:03]} 54. Rxc2 {[%emt 0:00:23]} Rb8 {[%emt 0:
00:00]} 55. Rd2+ {[%emt 0:00:45]} Ke5 {[%emt 0:00:15]} 56. Rd5+ {[%emt 0:00:31]
} Kf4 {[%emt 0:00:28]} 57. Rh5 {[%emt 0:00:42]} Rb2+ {[%emt 0:00:09]} 58. Ke1 {
[%emt 0:02:43]} Nxf3+ {[%emt 0:00:43]} 59. Bxf3 {[%emt 0:00:07]} Kxf3 {[%emt 0:
00:00]} 60. g5 {[%emt 0:00:33]} Ke3 {[%emt 0:01:01]} 61. Kd1 {[%emt 0:00:13]}
Kd3 {[%emt 0:00:36]} 62. Kc1 {[%emt 0:00:27]} Kc3 {[%emt 0:00:01]} 63. Rh4 {
[%emt 0:01:19]} Rg2 {[%emt 0:00:29]} 64. Rg4 {[%emt 0:00:10]} Rh2 {[%emt 0:00:
00]} 65. Rg3+ {[%emt 0:00:06]} Kd4 {[%emt 0:00:06]} 66. g6 {[%emt 0:00:14]}
Rh1+ {[%emt 0:00:35]} 67. Kc2 {[%emt 0:00:23]} Rh2+ {[%emt 0:01:01]} 68. Kb3 {
[%emt 0:00:14]} Rh1 {[%emt 0:00:29]} 69. g7 {[%emt 0:00:13]} Rb1+ {[%emt 0:00:
00]} 70. Kc2 {[%emt 0:00:14]} 1-0